[Event "23rd ETCC Women 2021"]
[Site "Catez"]
[Date "2021.11.13"]
[Round "2.53"]
[White "Tsolakidou, Stavroula"]
[Black "Novkovic, Julia"]
[Result "1-0"]
[ECO "D20"]
[WhiteElo "2377"]
[BlackElo "2082"]
[Annotator "NA"]
[PlyCount "59"]
[EventDate "2021.11.08"]
[EventType "team-tourn"]
[EventCountry "SLO"]
[SourceTitle "playchess.com"]
[Source "ChessBase"]
[SourceQuality "1"]
[WhiteTeam "Greece"]
[BlackTeam "Austria"]
[WhiteTeamCountry "GRE"]
[BlackTeamCountry "AUT"]
[TimeControl "40/5400+30:1800+30"]

1. d4 {[%emt 0:00:04]} d5 {[%emt 0:00:12]} 2. c4 {[%emt 0:00:16]} dxc4 {
[%emt 0:00:05]} 3. e4 {[%emt 0:01:06]} Nf6 {[%emt 0:00:17]} 4. e5 {[%emt 0:00:
31]} Nd5 {[%emt 0:00:06]} 5. Bxc4 {[%emt 0:00:08]} Nc6 {[%emt 0:01:47]} 6. Ne2
{[%emt 0:12:39]} Nb6 {[%emt 0:00:45]} 7. Bd3 {[%emt 0:00:35]} e6 {[%emt 0:07:
20]} 8. Nbc3 {[%emt 0:03:10]} Bd7 {[%emt 0:02:20]} 9. a3 {[%emt 0:05:39]} Ne7 {
[%emt 0:06:51]} 10. O-O {[%emt 0:05:53]} Ned5 {[%emt 0:05:17]} 11. Ne4 {
[%emt 0:16:10]} Bc6 {[%emt 0:06:26]} 12. Qc2 {[%emt 0:04:56]} Be7 {[%emt 0:17:
29]} 13. Bd2 {[%emt 0:09:54]} a5 {[%emt 0:06:11]} 14. Rac1 {[%emt 0:08:20]} Nd7
{[%emt 0:09:48]} 15. Qb1 {[%emt 0:06:56]} Qb8 {[%emt 0:04:24]} 16. b4 {[%emt 0:
01:08]} axb4 {[%emt 0:01:27]} 17. axb4 {[%emt 0:00:04]} N5b6 {[%emt 0:06:18]}
18. b5 {[%emt 0:01:16]} Bd5 {[%emt 0:00:05]} 19. Nf4 {[%emt 0:02:13]} Ra4 {
[%emt 0:05:00]} 20. Be3 {[%emt 0:06:53]} Rb4 {[%emt 0:02:44]} 21. Qc2 {[%emt 0:
02:39]} Bxe4 {[%emt 0:10:18]} 22. Bxe4 {[%emt 0:00:08]} Nc4 {[%emt 0:03:07]}
23. Nd3 {[%emt 0:01:32]} Nxe3 {[%emt 0:00:18]} 24. fxe3 {[%emt 0:00:15]} Rxb5 {
[%emt 0:00:31]} 25. Qxc7 {[%emt 0:01:06]} Bd8 {[%emt 0:02:03]} 26. Qxb8 {
[%emt 0:04:45]} Nxb8 {[%emt 0:00:01]} 27. Nc5 {[%emt 0:00:13]} Bg5 {[%emt 0:01:
17]} 28. Rc3 {[%emt 0:00:48]} b6 {[%emt 0:00:40]} 29. Nxe6 {[%emt 0:01:04]}
fxe6 {[%emt 0:01:05]} 30. Rc8+ {[%emt 0:00:04]} 1-0

[Event "23rd ETCC Women 2021"]
[Site "Catez"]
[Date "2021.11.14"]
[Round "2.54"]
[White "Hapala, Elisabeth"]
[Black "Avramidou, Anastasia"]
[Result "0-1"]
[ECO "B60"]
[WhiteElo "2139"]
[BlackElo "2217"]
[Annotator "ChessBase"]
[PlyCount "100"]
[EventDate "2021.11.08"]
[EventType "team-tourn"]
[EventCountry "SLO"]
[SourceTitle "playchess.com"]
[Source "ChessBase"]
[SourceQuality "1"]
[WhiteTeam "Austria"]
[BlackTeam "Greece"]
[WhiteTeamCountry "AUT"]
[BlackTeamCountry "GRE"]
[TimeControl "40/5400+30:1800+30"]

1. e4 {[%emt 0:00:01]} c5 {[%emt 0:00:06]} 2. Nf3 {[%emt 0:00:04]} d6 {[%emt 0:
00:08]} 3. d4 {[%emt 0:00:03]} cxd4 {[%emt 0:00:09]} 4. Nxd4 {[%emt 0:00:03]}
Nf6 {[%emt 0:00:09]} 5. Nc3 {[%emt 0:00:04]} Nc6 {[%emt 0:00:09]} 6. Bg5 {
[%emt 0:00:18]} g6 {[%emt 0:00:08]} 7. Bxf6 {[%emt 0:19:45]} exf6 {[%emt 0:00:
13]} 8. Bb5 {[%emt 0:00:08]} Bd7 {[%emt 0:00:08]} 9. Nd5 {[%emt 0:06:17]} Bg7 {
[%emt 0:04:37]} 10. c3 {[%emt 0:07:42]} O-O {[%emt 0:09:17]} 11. O-O {[%emt 0:
01:01]} Re8 {[%emt 0:06:29]} 12. Qd3 {[%emt 0:12:51]} f5 {[%emt 0:18:40]} 13.
exf5 {[%emt 0:03:28]} Nxd4 {[%emt 0:02:20]} 14. cxd4 {[%emt 0:04:09]} Bxf5 {
[%emt 0:00:10]} 15. Qb3 {[%emt 0:03:50]} Rf8 {[%emt 0:07:49]} 16. Ne3 {[%emt 0:
06:00]} Be4 {[%emt 0:05:19]} 17. Rfd1 {[%emt 0:08:57]} Qg5 {[%emt 0:04:14]} 18.
Bc4 {[%emt 0:02:04]} Rac8 {[%emt 0:08:35]} 19. Bd5 {[%emt 0:01:51]} Bxd5 {
[%emt 0:08:46]} 20. Nxd5 {[%emt 0:00:01]} b6 {[%emt 0:00:15]} 21. g3 {[%emt 0:
03:55]} Rfe8 {[%emt 0:03:40]} 22. Ne3 {[%emt 0:03:07]} Re4 {[%emt 0:01:51]} 23.
d5 {[%emt 0:05:01]} h5 {[%emt 0:03:58]} 24. Rac1 {[%emt 0:01:18]} Rce8 {
[%emt 0:04:17]} 25. Rc4 {[%emt 0:05:44]} h4 {[%emt 0:05:56]} 26. Rxe4 {[%emt 0:
01:56]} Rxe4 {[%emt 0:00:06]} 27. Qc2 {[%emt 0:02:39]} Qe7 {[%emt 0:01:36]} 28.
Rd3 {[%emt 0:01:30]} Bd4 {[%emt 0:02:09]} 29. Qc1 {[%emt 0:00:25]} Qe5 {
[%emt 0:01:25]} 30. b3 {[%emt 0:00:36]} hxg3 {[%emt 0:01:15]} 31. hxg3 {
[%emt 0:00:11]} Bxe3 {[%emt 0:00:28]} 32. Rxe3 {[%emt 0:00:02]} Rxe3 {[%emt 0:
00:33]} 33. Qxe3 {[%emt 0:00:31]} Qxe3 {[%emt 0:00:31]} 34. fxe3 {[%emt 0:00:
01]} Kg7 {[%emt 0:00:06]} 35. Kf2 {[%emt 0:00:28]} Kf6 {[%emt 0:01:01]} 36. e4
{[%emt 0:01:49]} Ke5 {[%emt 0:00:05]} 37. Ke3 {[%emt 0:00:20]} f5 {[%emt 0:00:
44]} 38. exf5 {[%emt 0:00:16]} Kxf5 {[%emt 0:01:26]} 39. Kf3 {[%emt 0:00:36]}
Ke5 {[%emt 0:00:11]} 40. Kg4 {[%emt 0:00:15]} Kxd5 {[%emt 0:00:04]} 41. Kg5 {
[%emt 0:30:08]} Ke4 {[%emt 0:30:05]} 42. Kxg6 {[%emt 0:00:00]} d5 {[%emt 0:00:
00]} 43. g4 {[%emt 0:00:00]} d4 {[%emt 0:00:00]} 44. g5 {[%emt 0:00:00]} d3 {
[%emt 0:00:00]} 45. Kf7 {[%emt 0:00:00]} d2 {[%emt 0:00:00]} 46. g6 {[%emt 0:
00:00]} d1=Q {[%emt 0:00:00]} 47. g7 {[%emt 0:00:00]} Qd5+ {[%emt 0:00:00]} 48.
Kf8 {[%emt 0:00:00]} Qf5+ {[%emt 0:00:00]} 49. Ke7 {[%emt 0:00:00]} Qg6 {
[%emt 0:00:00]} 50. Kf8 {[%emt 0:00:00]} Qf6+ {[%emt 0:00:00]} 0-1

[Event "23rd ETCC Women 2021"]
[Site "Catez"]
[Date "2021.11.14"]
[Round "2.55"]
[White "Pavlidou, Ekaterini"]
[Black "Teuschler, Barbara"]
[Result "1/2-1/2"]
[ECO "D25"]
[WhiteElo "2172"]
[BlackElo "2115"]
[Annotator "ChessBase"]
[PlyCount "87"]
[EventDate "2021.11.08"]
[EventType "team-tourn"]
[EventCountry "SLO"]
[SourceTitle "playchess.com"]
[Source "ChessBase"]
[SourceQuality "1"]
[WhiteTeam "Greece"]
[BlackTeam "Austria"]
[WhiteTeamCountry "GRE"]
[BlackTeamCountry "AUT"]
[TimeControl "40/5400+30:1800+30"]

1. d4 {[%emt 0:00:18]} d5 {[%emt 0:00:02]} 2. c4 {[%emt 0:00:22]} dxc4 {
[%emt 0:00:02]} 3. Nf3 {[%emt 0:00:17]} Nf6 {[%emt 0:00:13]} 4. e3 {[%emt 0:00:
15]} Bg4 {[%emt 0:00:03]} 5. Bxc4 {[%emt 0:00:20]} e6 {[%emt 0:00:03]} 6. h3 {
[%emt 0:00:48]} Bh5 {[%emt 0:00:08]} 7. Nc3 {[%emt 0:00:32]} Nc6 {[%emt 0:00:
48]} 8. g4 {[%emt 0:06:32]} Bg6 {[%emt 0:00:05]} 9. Bb5 {[%emt 0:05:53]} Bd6 {
[%emt 0:03:20]} 10. Qa4 {[%emt 0:04:18]} O-O {[%emt 0:03:58]} 11. a3 {[%emt 0:
15:25]} Ne4 {[%emt 0:08:39]} 12. Nd2 {[%emt 0:06:45]} f5 {[%emt 0:08:51]} 13.
Bxc6 {[%emt 0:11:28]} bxc6 {[%emt 0:00:38]} 14. Ndxe4 {[%emt 0:07:00]} fxe4 {
[%emt 0:00:05]} 15. Bd2 {[%emt 0:00:51]} Rb8 {[%emt 0:08:29]} 16. O-O-O {
[%emt 0:02:47]} Rxf2 {[%emt 0:02:02]} 17. h4 {[%emt 0:01:38]} h6 {[%emt 0:17:
05]} 18. h5 {[%emt 0:04:36]} Bh7 {[%emt 0:00:01]} 19. Qc4 {[%emt 0:05:00]} Qe7
{[%emt 0:03:04]} 20. Nb1 {[%emt 0:01:02]} Kh8 {[%emt 0:05:16]} 21. Rhf1 {
[%emt 0:04:13]} Rf3 {[%emt 0:01:44]} 22. Qxc6 {[%emt 0:01:41]} Qf7 {[%emt 0:09:
24]} 23. Qc4 {[%emt 0:02:06]} Rf8 {[%emt 0:00:44]} 24. Rg1 {[%emt 0:00:35]} Qe7
{[%emt 0:02:25]} 25. Rg2 {[%emt 0:04:43]} e5 {[%emt 0:03:20]} 26. g5 {[%emt 0:
03:55]} hxg5 {[%emt 0:01:51]} 27. Rdg1 {[%emt 0:00:22]} exd4 {[%emt 0:01:37]}
28. Qxd4 {[%emt 0:03:04]} Rf1+ {[%emt 0:07:43]} 29. Rxf1 {[%emt 0:01:15]} Rxf1+
{[%emt 0:00:00]} 30. Kc2 {[%emt 0:00:07]} Be5 {[%emt 0:05:08]} 31. Qc4 {
[%emt 0:00:39]} Rf3 {[%emt 0:01:46]} 32. Nc3 {[%emt 0:03:36]} Bg8 {[%emt 0:00:
26]} 33. Qb5 {[%emt 0:01:26]} Bf6 {[%emt 0:01:45]} 34. Kc1 {[%emt 0:02:07]} Qe6
{[%emt 0:02:20]} 35. Rg1 {[%emt 0:00:48]} g4 {[%emt 0:00:40]} 36. h6 {[%emt 0:
01:03]} gxh6 {[%emt 0:01:09]} 37. Qh5 {[%emt 0:00:09]} Bg5 {[%emt 0:00:46]} 38.
Rxg4 {[%emt 0:01:00]} Rf1+ {[%emt 0:00:14]} 39. Nd1 {[%emt 0:00:03]} Bf7 {
[%emt 0:03:20]} 40. Bc3+ {[%emt 0:00:01]} Kh7 {[%emt 0:00:01]} 41. Rxg5 {
[%emt 0:04:56]} Bxh5 {[%emt 0:05:46]} 42. Rg7+ {[%emt 0:00:07]} Kh8 {[%emt 0:
00:01]} 43. Rg6+ {[%emt 0:00:16]} Kh7 {[%emt 0:00:28]} 44. Rg7+ {[%emt 0:03:22]
} 1/2-1/2

[Event "23rd ETCC Women 2021"]
[Site "Catez"]
[Date "2021.11.14"]
[Round "2.56"]
[White "Mayrhuber, Nikola"]
[Black "Markantonaki, Haritomeni"]
[Result "1/2-1/2"]
[ECO "E52"]
[WhiteElo "2091"]
[BlackElo "2174"]
[Annotator "ChessBase"]
[PlyCount "159"]
[EventDate "2021.11.08"]
[EventType "team-tourn"]
[EventCountry "SLO"]
[SourceTitle "playchess.com"]
[Source "ChessBase"]
[SourceQuality "1"]
[WhiteTeam "Austria"]
[BlackTeam "Greece"]
[WhiteTeamCountry "AUT"]
[BlackTeamCountry "GRE"]
[TimeControl "40/5400+30:1800+30"]

1. d4 {[%emt 0:00:04]} Nf6 {[%emt 0:00:09]} 2. c4 {[%emt 0:00:08]} e6 {[%emt 0:
00:14]} 3. Nc3 {[%emt 0:00:07]} Bb4 {[%emt 0:00:20]} 4. Bd2 {[%emt 0:00:14]}
O-O {[%emt 0:00:49]} 5. Nf3 {[%emt 0:00:22]} b6 {[%emt 0:01:20]} 6. e3 {
[%emt 0:00:30]} Bb7 {[%emt 0:00:28]} 7. Bd3 {[%emt 0:01:12]} d5 {[%emt 0:00:47]
} 8. O-O {[%emt 0:06:58]} Bd6 {[%emt 0:06:46]} 9. cxd5 {[%emt 0:11:48]} exd5 {
[%emt 0:00:09]} 10. Rc1 {[%emt 0:01:34]} a6 {[%emt 0:00:54]} 11. Ne5 {[%emt 0:
03:47]} c5 {[%emt 0:03:40]} 12. f4 {[%emt 0:02:28]} Nc6 {[%emt 0:03:38]} 13.
Be1 {[%emt 0:16:32]} cxd4 {[%emt 0:09:59]} 14. Nxc6 {[%emt 0:01:56]} Bxc6 {
[%emt 0:00:14]} 15. Ne2 {[%emt 0:01:13]} Bb7 {[%emt 0:03:23]} 16. Nxd4 {
[%emt 0:02:19]} Re8 {[%emt 0:03:46]} 17. Qf3 {[%emt 0:07:51]} Rc8 {[%emt 0:09:
06]} 18. Bh4 {[%emt 0:04:22]} Rxc1 {[%emt 0:08:06]} 19. Rxc1 {[%emt 0:00:07]}
Bc5 {[%emt 0:00:17]} 20. Qh3 {[%emt 0:09:52]} Bc8 {[%emt 0:15:20]} 21. Bxf6 {
[%emt 0:03:50]} Qxf6 {[%emt 0:02:22]} 22. Qxh7+ {[%emt 0:09:22]} Kf8 {[%emt 0:
00:04]} 23. Kh1 {[%emt 0:04:40]} g6 {[%emt 0:04:44]} 24. Qh6+ {[%emt 0:03:55]}
Ke7 {[%emt 0:03:20]} 25. Qg5 {[%emt 0:02:29]} Qxg5 {[%emt 0:01:41]} 26. fxg5 {
[%emt 0:00:01]} Kd6 {[%emt 0:00:41]} 27. b4 {[%emt 0:03:50]} Bxb4 {[%emt 0:04:
57]} 28. Rc6+ {[%emt 0:00:08]} Kd7 {[%emt 0:00:50]} 29. Be2 {[%emt 0:00:46]}
Re4 {[%emt 0:02:52]} 30. Rxb6 {[%emt 0:02:05]} Bc5 {[%emt 0:02:13]} 31. Rb2 {
[%emt 0:00:03]} Bxd4 {[%emt 0:02:27]} 32. exd4 {[%emt 0:00:07]} Rxd4 {[%emt 0:
01:49]} 33. h3 {[%emt 0:00:26]} Kc7 {[%emt 0:01:35]} 34. Rc2+ {[%emt 0:00:23]}
Kd8 {[%emt 0:01:44]} 35. Rc6 {[%emt 0:00:59]} a5 {[%emt 0:00:30]} 36. Bf3 {
[%emt 0:00:51]} Be6 {[%emt 0:00:21]} 37. Rc5 {[%emt 0:00:42]} a4 {[%emt 0:00:
38]} 38. Ra5 {[%emt 0:00:16]} Kc7 {[%emt 0:00:54]} 39. Kh2 {[%emt 0:00:46]} Kb6
{[%emt 0:00:29]} 40. Ra8 {[%emt 0:00:10]} Kb5 {[%emt 0:00:33]} 41. a3 {[%emt 0:
09:18]} Rd2 {[%emt 0:03:35]} 42. Rb8+ {[%emt 0:01:45]} Kc5 {[%emt 0:01:40]} 43.
Ra8 {[%emt 0:04:06]} Kb5 {[%emt 0:02:55]} 44. Rb8+ {[%emt 0:00:29]} Kc4 {
[%emt 0:01:29]} 45. Rb4+ {[%emt 0:02:01]} Kc3 {[%emt 0:00:04]} 46. Rxa4 {
[%emt 0:01:26]} d4 {[%emt 0:00:38]} 47. Kg3 {[%emt 0:03:11]} Ra2 {[%emt 0:05:
54]} 48. Kf4 {[%emt 0:02:17]} d3 {[%emt 0:01:35]} 49. Ke3 {[%emt 0:02:22]} Ra1
{[%emt 0:03:36]} 50. Ra6 {[%emt 0:05:35]} Re1+ {[%emt 0:01:57]} 51. Kf2 {
[%emt 0:02:04]} d2 {[%emt 0:05:15]} 52. Rd6 {[%emt 0:01:37]} Bc4 {[%emt 0:01:
06]} 53. a4 {[%emt 0:00:32]} Bd3 {[%emt 0:06:07]} 54. Rc6+ {[%emt 0:00:41]} Kb4
{[%emt 0:00:31]} 55. Rd6 {[%emt 0:00:39]} d1=Q {[%emt 0:00:52]} 56. Bxd1 {
[%emt 0:00:08]} Rxd1 {[%emt 0:00:04]} 57. Rd4+ {[%emt 0:00:26]} Kc3 {[%emt 0:
01:18]} 58. Rf4 {[%emt 0:00:20]} Bc4 {[%emt 0:00:52]} 59. g4 {[%emt 0:00:59]}
Rd5 {[%emt 0:02:11]} 60. h4 {[%emt 0:00:21]} Ra5 {[%emt 0:00:48]} 61. Kg3 {
[%emt 0:00:42]} Kd3 {[%emt 0:00:42]} 62. Rf3+ {[%emt 0:00:23]} Ke2 {[%emt 0:00:
39]} 63. Ra3 {[%emt 0:00:35]} Be6 {[%emt 0:00:43]} 64. Kf4 {[%emt 0:00:19]} Rc5
{[%emt 0:00:20]} 65. Re3+ {[%emt 0:00:32]} Kf2 {[%emt 0:00:38]} 66. Rxe6 {
[%emt 0:00:54]} fxe6 {[%emt 0:00:04]} 67. h5 {[%emt 0:00:06]} Rc4+ {[%emt 0:00:
53]} 68. Ke5 {[%emt 0:00:26]} Rxg4 {[%emt 0:00:26]} 69. hxg6 {[%emt 0:00:37]}
Rxg5+ {[%emt 0:00:37]} 70. Kf6 {[%emt 0:00:03]} Rg1 {[%emt 0:01:53]} 71. a5 {
[%emt 0:00:10]} e5 {[%emt 0:00:20]} 72. a6 {[%emt 0:00:14]} Ra1 {[%emt 0:01:12]
} 73. Kxe5 {[%emt 0:01:29]} Rxa6 {[%emt 0:00:07]} 74. Kf5 {[%emt 0:00:12]} Kg3
{[%emt 0:00:46]} 75. g7 {[%emt 0:00:20]} Ra8 {[%emt 0:00:24]} 76. Kg5 {[%emt 0:
00:38]} Rb8 {[%emt 0:00:17]} 77. Kg6 {[%emt 0:00:32]} Kg4 {[%emt 0:00:18]} 78.
Kf7 {[%emt 0:00:42]} Rb7+ {[%emt 0:00:34]} 79. Kg6 {[%emt 0:00:23]} Rb6+ {
[%emt 0:00:14]} 80. Kf7 {[%emt 0:00:12]} 1/2-1/2

[Event "23rd ETCC Women 2021"]
[Site "Catez"]
[Date "2021.11.14"]
[Round "2.57"]
[White "Hrescak, Ivana"]
[Black "Shvayger, Yuliya"]
[Result "1-0"]
[ECO "E46"]
[WhiteElo "2138"]
[BlackElo "2351"]
[Annotator "ChessBase"]
[PlyCount "75"]
[EventDate "2021.11.08"]
[EventType "team-tourn"]
[EventCountry "SLO"]
[SourceTitle "playchess.com"]
[Source "ChessBase"]
[SourceQuality "1"]
[WhiteTeam "Slovenia"]
[BlackTeam "Israel"]
[WhiteTeamCountry "SLO"]
[BlackTeamCountry "ISR"]
[TimeControl "40/5400+30:1800+30"]

1. d4 {[%emt 0:00:03]} Nf6 {[%emt 0:00:09]} 2. c4 {[%emt 0:00:12]} e6 {[%emt 0:
00:03]} 3. Nc3 {[%emt 0:00:04]} Bb4 {[%emt 0:00:11]} 4. e3 {[%emt 0:00:05]} O-O
{[%emt 0:00:28]} 5. Nge2 {[%emt 0:00:33]} Re8 {[%emt 0:00:28]} 6. a3 {[%emt 0:
00:08]} Bf8 {[%emt 0:00:06]} 7. d5 {[%emt 0:00:09]} a5 {[%emt 0:00:38]} 8. g3 {
[%emt 0:01:22]} Na6 {[%emt 0:02:01]} 9. Bg2 {[%emt 0:00:09]} Nc5 {[%emt 0:00:
59]} 10. b3 {[%emt 0:00:33]} d6 {[%emt 0:10:59]} 11. O-O {[%emt 0:01:34]} Bd7 {
[%emt 0:02:22]} 12. Qc2 {[%emt 0:05:36]} exd5 {[%emt 0:09:59]} 13. cxd5 {
[%emt 0:01:17]} b5 {[%emt 0:03:21]} 14. Nd4 {[%emt 0:06:13]} b4 {[%emt 0:09:59]
} 15. Nce2 {[%emt 0:04:16]} Qb8 {[%emt 0:10:16]} 16. a4 {[%emt 0:10:56]} Qb7 {
[%emt 0:05:46]} 17. Nf4 {[%emt 0:02:19]} g6 {[%emt 0:02:10]} 18. Bb2 {[%emt 0:
07:54]} Bg7 {[%emt 0:00:02]} 19. Rfe1 {[%emt 0:03:59]} Nfe4 {[%emt 0:04:59]}
20. h4 {[%emt 0:07:35]} f5 {[%emt 0:04:32]} 21. Bf1 {[%emt 0:04:43]} Be5 {
[%emt 0:06:11]} 22. Bc4 {[%emt 0:02:31]} Kf8 {[%emt 0:02:01]} 23. h5 {[%emt 0:
14:34]} Kf7 {[%emt 0:00:49]} 24. Nde6 {[%emt 0:07:54]} Bxf4 {[%emt 0:06:28]}
25. Nxc5 {[%emt 0:05:27]} Nxc5 {[%emt 0:00:03]} 26. exf4 {[%emt 0:00:06]} Ne4 {
[%emt 0:06:20]} 27. Kg2 {[%emt 0:00:26]} Rg8 {[%emt 0:05:03]} 28. hxg6+ {
[%emt 0:06:00]} Rxg6 {[%emt 0:00:02]} 29. Rh1 {[%emt 0:01:33]} h6 {[%emt 0:00:
05]} 30. Rh3 {[%emt 0:03:11]} Nf6 {[%emt 0:02:09]} 31. Qd3 {[%emt 0:00:54]} Be6
{[%emt 0:01:41]} 32. Rd1 {[%emt 0:01:00]} Rh8 {[%emt 0:02:28]} 33. Qf3 {
[%emt 0:00:44]} Bd7 {[%emt 0:00:03]} 34. Re1 {[%emt 0:00:25]} Rh7 {[%emt 0:01:
47]} 35. Re6 {[%emt 0:01:21]} Ng4 {[%emt 0:00:14]} 36. Rh5 {[%emt 0:00:30]} Rf6
{[%emt 0:02:04]} 37. Bxf6 {[%emt 0:00:31]} Nxf6 {[%emt 0:00:02]} 38. Rxf5 {
[%emt 0:00:11]} 1-0

[Event "23rd ETCC Women 2021"]
[Site "Catez"]
[Date "2021.11.14"]
[Round "2.58"]
[White "Klinova, Masha"]
[Black "Kolaric, Spela"]
[Result "0-1"]
[ECO "C50"]
[WhiteElo "2264"]
[BlackElo "2178"]
[Annotator "ChessBase"]
[PlyCount "130"]
[EventDate "2021.11.08"]
[EventType "team-tourn"]
[EventCountry "SLO"]
[SourceTitle "playchess.com"]
[Source "ChessBase"]
[SourceQuality "1"]
[WhiteTeam "Israel"]
[BlackTeam "Slovenia"]
[WhiteTeamCountry "ISR"]
[BlackTeamCountry "SLO"]
[TimeControl "40/5400+30:1800+30"]

1. e4 {[%emt 0:00:04]} e5 {[%emt 0:00:17]} 2. Nf3 {[%emt 0:00:06]} Nc6 {
[%emt 0:00:10]} 3. Bc4 {[%emt 0:00:11]} Nf6 {[%emt 0:00:32]} 4. d3 {[%emt 0:00:
07]} Bc5 {[%emt 0:00:11]} 5. Nc3 {[%emt 0:01:27]} d6 {[%emt 0:01:24]} 6. Na4 {
[%emt 0:01:18]} Bb6 {[%emt 0:02:42]} 7. a3 {[%emt 0:03:39]} Be6 {[%emt 0:04:47]
} 8. Nxb6 {[%emt 0:02:53]} axb6 {[%emt 0:02:46]} 9. Bxe6 {[%emt 0:00:06]} fxe6
{[%emt 0:00:06]} 10. O-O {[%emt 0:01:59]} O-O {[%emt 0:00:45]} 11. Re1 {
[%emt 0:02:50]} Qe8 {[%emt 0:04:38]} 12. Bg5 {[%emt 0:10:18]} Nh5 {[%emt 0:25:
41]} 13. c3 {[%emt 0:09:45]} Qg6 {[%emt 0:01:36]} 14. Bh4 {[%emt 0:01:26]} Rf7
{[%emt 0:03:42]} 15. Bg3 {[%emt 0:11:30]} Raf8 {[%emt 0:05:07]} 16. Rc1 {
[%emt 0:03:18]} Nf4 {[%emt 0:04:32]} 17. Re3 {[%emt 0:02:29]} Qf6 {[%emt 0:05:
41]} 18. d4 {[%emt 0:03:53]} g5 {[%emt 0:03:05]} 19. dxe5 {[%emt 0:06:39]} dxe5
{[%emt 0:04:20]} 20. h3 {[%emt 0:05:40]} h5 {[%emt 0:02:34]} 21. h4 {[%emt 0:
01:16]} gxh4 {[%emt 0:06:23]} 22. Bxh4 {[%emt 0:09:31]} Qh6 {[%emt 0:06:14]}
23. Bg5 {[%emt 0:13:26]} Qg6 {[%emt 0:01:05]} 24. Bxf4 {[%emt 0:01:52]} exf4 {
[%emt 0:00:50]} 25. Rd3 {[%emt 0:02:10]} Rg7 {[%emt 0:04:34]} 26. Qf1 {[%emt 0:
00:11]} Qxe4 {[%emt 0:00:38]} 27. Re1 {[%emt 0:00:14]} Qg6 {[%emt 0:04:32]} 28.
Red1 {[%emt 0:02:35]} Kh8 {[%emt 0:02:35]} 29. Rd7 {[%emt 0:00:18]} Rfg8 {
[%emt 0:00:12]} 30. Rxg7 {[%emt 0:00:25]} Qxg7 {[%emt 0:00:16]} 31. Ne1 {
[%emt 0:01:28]} Ne5 {[%emt 0:01:05]} 32. Rd4 {[%emt 0:00:49]} Qg5 {[%emt 0:00:
28]} 33. f3 {[%emt 0:01:13]} Ng6 {[%emt 0:00:41]} 34. Qe2 {[%emt 0:00:40]} e5 {
[%emt 0:00:27]} 35. Rd7 {[%emt 0:00:17]} Rg7 {[%emt 0:02:15]} 36. Qd3 {[%emt 0:
01:11]} Qf6 {[%emt 0:00:20]} 37. Rxg7 {[%emt 0:00:26]} Kxg7 {[%emt 0:00:14]}
38. Qe4 {[%emt 0:00:50]} c6 {[%emt 0:00:33]} 39. Nd3 {[%emt 0:00:05]} Qe6 {
[%emt 0:00:42]} 40. a4 {[%emt 0:00:30]} Kf6 {[%emt 0:00:27]} 41. Nf2 {[%emt 0:
03:00]} Qd6 {[%emt 0:12:15]} 42. Qc4 {[%emt 0:00:47]} Kg7 {[%emt 0:01:42]} 43.
Qb3 {[%emt 0:07:10]} Nh4 {[%emt 0:06:13]} 44. Qc2 {[%emt 0:07:56]} Qg6 {
[%emt 0:00:25]} 45. Qxg6+ {[%emt 0:00:16]} Kxg6 {[%emt 0:00:09]} 46. Ne4 {
[%emt 0:00:38]} Nf5 {[%emt 0:00:16]} 47. Kf2 {[%emt 0:00:45]} Kf7 {[%emt 0:00:
56]} 48. c4 {[%emt 0:00:24]} Ke7 {[%emt 0:01:11]} 49. b4 {[%emt 0:05:16]} Nd6 {
[%emt 0:04:37]} 50. Nd2 {[%emt 0:00:05]} c5 {[%emt 0:03:31]} 51. b5 {[%emt 0:
04:59]} Kf6 {[%emt 0:01:29]} 52. Ke2 {[%emt 0:00:13]} Kf5 {[%emt 0:02:05]} 53.
Kd3 {[%emt 0:00:09]} h4 {[%emt 0:00:22]} 54. Ke2 {[%emt 0:02:18]} e4 {[%emt 0:
01:01]} 55. fxe4+ {[%emt 0:00:35]} Nxe4 {[%emt 0:00:07]} 56. Nf3 {[%emt 0:00:
06]} Kg4 {[%emt 0:00:48]} 57. Ne5+ {[%emt 0:00:36]} Kg3 {[%emt 0:00:12]} 58.
Kf1 {[%emt 0:00:08]} Nd2+ {[%emt 0:00:26]} 59. Ke2 {[%emt 0:00:09]} Ne4 {
[%emt 0:01:36]} 60. Kf1 {[%emt 0:00:02]} h3 {[%emt 0:00:44]} 61. gxh3 {[%emt 0:
00:04]} Kxh3 {[%emt 0:00:10]} 62. Nd7 {[%emt 0:00:13]} Kg3 {[%emt 0:00:12]} 63.
Nxb6 {[%emt 0:01:05]} f3 {[%emt 0:00:14]} 64. Nd5 {[%emt 0:01:16]} Nd2+ {
[%emt 0:00:18]} 65. Ke1 {[%emt 0:00:21]} Nxc4 {[%emt 0:00:48]} 0-1

[Event "23rd ETCC Women 2021"]
[Site "Catez"]
[Date "2021.11.14"]
[Round "2.59"]
[White "Hercog, Nusa"]
[Black "Shapir, Maya"]
[Result "0-1"]
[ECO "E43"]
[WhiteElo "1983"]
[BlackElo "2256"]
[Annotator "ChessBase"]
[PlyCount "90"]
[EventDate "2021.11.08"]
[EventType "team-tourn"]
[EventCountry "SLO"]
[SourceTitle "playchess.com"]
[Source "ChessBase"]
[SourceQuality "1"]
[WhiteTeam "Slovenia"]
[BlackTeam "Israel"]
[WhiteTeamCountry "SLO"]
[BlackTeamCountry "ISR"]
[TimeControl "40/5400+30:1800+30"]

1. d4 {[%emt 0:00:04]} e6 {[%emt 0:01:03]} 2. c4 {[%emt 0:00:12]} b6 {[%emt 0:
00:15]} 3. Nc3 {[%emt 0:01:59]} Bb4 {[%emt 0:03:16]} 4. Nf3 {[%emt 0:01:06]}
Bb7 {[%emt 0:00:59]} 5. e3 {[%emt 0:00:16]} f5 {[%emt 0:03:02]} 6. Bd3 {
[%emt 0:04:40]} Nf6 {[%emt 0:00:40]} 7. O-O {[%emt 0:00:47]} O-O {[%emt 0:06:
48]} 8. a3 {[%emt 0:13:17]} Bxc3 {[%emt 0:01:36]} 9. bxc3 {[%emt 0:00:04]} Ne4
{[%emt 0:06:11]} 10. Qc2 {[%emt 0:08:48]} d6 {[%emt 0:05:46]} 11. Nd2 {[%emt 0:
09:21]} Nxd2 {[%emt 0:05:33]} 12. Bxd2 {[%emt 0:04:17]} Qg5 {[%emt 0:09:47]}
13. d5 {[%emt 0:12:23]} Nd7 {[%emt 0:06:08]} 14. f4 {[%emt 0:02:30]} Qh5 {
[%emt 0:12:30]} 15. e4 {[%emt 0:13:12]} fxe4 {[%emt 0:05:19]} 16. Bxe4 {
[%emt 0:01:53]} exd5 {[%emt 0:00:48]} 17. Bf3 {[%emt 0:01:03]} Qf7 {[%emt 0:00:
30]} 18. Rfe1 {[%emt 0:08:11]} Rae8 {[%emt 0:07:48]} 19. Be3 {[%emt 0:02:58]}
Nf6 {[%emt 0:02:34]} 20. Rad1 {[%emt 0:01:26]} d4 {[%emt 0:09:35]} 21. Bxb7 {
[%emt 0:02:43]} dxe3 {[%emt 0:00:09]} 22. Qd3 {[%emt 0:00:40]} Qh5 {[%emt 0:01:
51]} 23. Bf3 {[%emt 0:03:01]} Qc5 {[%emt 0:00:45]} 24. Re2 {[%emt 0:01:28]}
Qxa3 {[%emt 0:01:38]} 25. Rde1 {[%emt 0:03:33]} Qc5 {[%emt 0:00:10]} 26. g3 {
[%emt 0:00:59]} Re7 {[%emt 0:00:41]} 27. Kg2 {[%emt 0:02:26]} Rfe8 {[%emt 0:00:
13]} 28. Rb1 {[%emt 0:00:28]} c6 {[%emt 0:01:28]} 29. h3 {[%emt 0:00:37]} d5 {
[%emt 0:01:58]} 30. cxd5 {[%emt 0:00:12]} Nxd5 {[%emt 0:00:03]} 31. c4 {
[%emt 0:00:30]} Nf6 {[%emt 0:01:15]} 32. Ra1 {[%emt 0:00:43]} Rd7 {[%emt 0:00:
29]} 33. Qb3 {[%emt 0:00:18]} h5 {[%emt 0:03:07]} 34. Ra3 {[%emt 0:00:47]} Rde7
{[%emt 0:00:24]} 35. Ra6 {[%emt 0:00:33]} h4 {[%emt 0:00:44]} 36. gxh4 {
[%emt 0:00:31]} Kh8 {[%emt 0:00:53]} 37. Raa2 {[%emt 0:00:32]} Nh5 {[%emt 0:01:
01]} 38. Bxh5 {[%emt 0:00:19]} Qxh5 {[%emt 0:00:01]} 39. Qc3 {[%emt 0:00:41]}
Qxh4 {[%emt 0:00:33]} 40. Qd4 {[%emt 0:00:29]} Re6 {[%emt 0:01:57]} 41. Kh2 {
[%emt 0:05:09]} Re4 {[%emt 0:02:49]} 42. Qd7 {[%emt 0:00:54]} Qxf4+ {[%emt 0:
00:18]} 43. Kg2 {[%emt 0:00:13]} R8e6 {[%emt 0:02:45]} 44. Re1 {[%emt 0:02:57]}
Rg6+ {[%emt 0:00:41]} 45. Kh1 {[%emt 0:00:04]} Qf3+ {[%emt 0:00:12]} 0-1